Cogmind - Beta 13 @@@ ROGUE MODE // 2024.03.31 @ 22:28:28 Player: Iz Result: Destroyed by G-34 Mercenary with Small Laser Performance ------------- Evolutions (1) 500 Regions Visited (2) 400 Robots Destroyed (34) 170 Value Destroyed (736) 736 Prototype IDs (0) 0 Alien Tech Used (0) 0 Bonus (2) 2 TOTAL SCORE: 1808 Bonus ------- High Alert Combat Kills 2 Cogmind --------- Core Integrity 0/400 Matter 68/500 Energy 125/125 System Corruption 4% Temperature Cool (6) Movement Core (150) Ox2 Location -9/Materials Parts ------- > --- POWER (2) -------- Light Ion Engine > --- PROPULSION (2) --- (None) > --- UTILITY (3) ------ High-capacity Matter Pod Terrain Scan Processor > --- WEAPON (2) ------- Mini Grenade Launcher > --- INVENTORY (5) ---- Aluminum Leg Mini Grenade Launcher Plasma Cutter Peak State ------------ > --- POWER ------------ Ion Engine > --- PROPULSION ------- Aluminum Leg Improved Aluminum Leg > --- UTILITY ---------- High-capacity Matter Pod Terrain Scan Processor Terrain Scan Processor > --- WEAPON ----------- Mini Grenade Launcher Mini Grenade Launcher > --- INVENTORY -------- Aluminum Leg Autogun Plasma Cutter [Rating: 13] Favorites ----------- Power Light Ion Engine Engine Light Ion Engine Propulsion Improved Aluminum Leg Leg Improved Aluminum Leg Wheel Wheel Utility Terrain Scan Processor Device Sensor Array Storage High-capacity Matter Pod Processor Terrain Scan Processor Weapon Mini Grenade Launcher Energy Gun EM Pulse Gun Energy Cannon Beam Cannon Ballistic Gun Assault Rifle Launcher Mini Grenade Launcher Special Weapon Plasma Cutter Build | -11 -10 -9 ------- Run | Yrd Mat Mat Slots Evolved 2 | . . 2 Power 1 | . . 1 Propulsion . | . . . Utility 1 | . . 1 Weapon . | . . . Parts Attached 38 | 7 15 16 Power 6 | 1 3 2 Engine 6 | 1 3 2 Core . | . . . Reactor . | . . . Propulsion 7 | 4 2 1 Treads . | . . . Leg 5 | 2 2 1 Wheel 2 | 2 . . Hover . | . . . Flight . | . . . Utility 11 | . 3 8 Device 6 | . 1 5 Storage 1 | . . 1 Processor 4 | . 2 2 Hackware . | . . . Protection . | . . . Artifact . | . . . Weapon 14 | 2 7 5 Energy Gun 4 | 1 2 1 Energy Cannon 1 | . 1 . Ballistic Gun 2 | 1 . 1 Ballistic Cannon . | . . . Launcher 6 | . 4 2 Special Weapon 1 | . . 1 Impact Weapon . | . . . Slashing Weapon . | . . . Piercing Weapon . | . . . Special Melee Weapon . | . . . Unidentified Prototypes . | . . . Parts Lost 12 | . 2 10 Power 3 | . 1 2 Propulsion 3 | . . 3 Utility 4 | . . 4 Weapon 2 | . 1 1 Highest Loss Streak 4 | . 1 4 To Critical Strikes . | . . . Average Slot Usage (%) 80 | . 87 70 Engine 9 | . 14 2 Leg 14 | . 10 19 Wheel 9 | . 16 . Device 6 | . 5 7 Storage 3 | . . 7 Processor 11 | . 11 11 Energy Gun 3 | . 4 1 Energy Cannon 2 | . 1 3 Ballistic Gun 1 | . 2 . Launcher 17 | . 18 15 Naked Turns . | . . . Heaviest Build 12 | 7 12 12 Greatest Support 26 | 20 26 26 Greatest Overweight (x) 2 | . 2 2 Average Overweight (x) . | . . . Largest Inventory Capacity 5 | 5 5 5 Average Capacity 5 | 5 5 5 Most Carried 5 | 5 5 5 Average Carried 3 | 2 4 3 Final Capacity 5 | 5 5 5 Final Carried 5 | 4 5 3 Class Distribution -------------------- 100% | Mutant Dominant Class ---------------- Mutant | -10/Materials Mutant | -9/Materials Resources | -11 -10 -9 ----------- Run | Yrd Mat Mat Matter Collected 634 | 277 192 165 Remotely 68 | . . 68 Salvage Created 670 | 42 325 303 Parts 69 | 3 28 38 Haulers Intercepted . | . . . Recyclers Shooed . | . . . Parts Field Recycled . | . . . Retrieved Matter . | . . . Parts Self-Destructed . | . . . Prevented . | . . . Kills | -11 -10 -9 ------- Run | Yrd Mat Mat Combat Hostiles Destroyed 19 | 1 8 10 Guns 4 | 1 2 1 Cannons 2 | . 1 1 AOE 13 | . 5 8 Classes Destroyed 8 | 1 3 4 Worker 4 | . 1 3 Builder 5 | . . 5 Recycler 1 | . . 1 Operator 1 | . . 1 Watcher 4 | . 3 1 Swarmer 8 | . 2 6 Grunt 10 | 1 6 3 Sentry 1 | . . 1 Best Kill Streak 7 | 1 3 7 Combat Bots Only 3 | 1 2 3 Max Kills in Single Turn 3 | 1 3 3 Gunslinging . | . . . Exploded 3 | . 2 3 Melee . | . . . Uniques/NPCs Destroyed . | . . . Combat | -11 -10 -9 -------- Run | Yrd Mat Mat Hostile Shots Fired 128 | 4 28 96 Missed 48 | 1 12 35 Damage Taken 1630 | 33 400 1197 Core 527 | 20 101 406 Absorbed by Shields . | . . . Core Remaining (%) 71 | 92 51 . Volleys Fired 40 | 3 20 17 Largest 2 | 2 2 2 Hottest 125 | 60 90 125 Shots Fired 71 | 6 38 27 Gun 39 | 6 26 7 Cannon 6 | . 3 3 Launcher 26 | . 9 17 Special . | . . . Kinetic 21 | 3 13 5 Thermal 8 | . 3 5 Explosive 26 | . 9 17 Electromagnetic 16 | 3 13 . Robot Hit Streak 11 | 4 6 11 Robot Miss Streak 5 | 1 5 3 Penetration Max . | . . . Secondary Targets 1 | . 1 . Max Gunslinging Chain 1 | . 1 . Shots Hit Robots 33 | 5 19 9 Core Hits 46 | 2 17 27 Critical Kills 2 | 1 1 . Critical Parts Destroyed . | . . . Critical Strikes 2 | 1 1 . Destroy 2 | 1 1 . Melee Attacks . | . . . Impact . | . . . Slashing . | . . . Piercing . | . . . Sneak Attacks . | . . . Combat Hostiles . | . . . Follow-up Attacks . | . . . Damage Inflicted 2100 | 66 475 1559 Guns 274 | 63 166 45 Cannons 87 | . 53 34 Explosions 1736 | . 256 1480 Melee . | . . . Ramming 3 | 3 . . Kinetic 106 | 25 54 27 Thermal 213 | . 53 160 Explosive 1628 | . 256 1372 Electromagnetic 150 | 38 112 . Impact . | . . . Slashing . | . . . Piercing . | . . . Highest Corruption 4 | . . 4 Average Corruption 4 | . . 4 Corruption Purged . | . . . Corruption Blocked . | . . . Effects 8 | . . 8 Message Errors 3 | . . 3 Matter Fused 3 | . . 3 Heat Flow Errors 1 | . . 1 Data Loss (minor) 1 | . . 1 Overload Shots . | . . . Overflow Damage 250 | . 78 172 Projectiles . | . . . Explosions 250 | . 78 172 Melee . | . . . Knockbacks . | . . . Impact . | . . . Kinetic . | . . . Secondary . | . . . Self-Inflicted Damage 537 | 1 170 366 Shots 11 | . 4 7 Rammed 1 | 1 . . Targets Rammed 1 | 1 . . Kicked . | . . . Crushed . | . . . Highest Temperature 131 | 18 70 131 Average Temperature 33 | 13 29 49 Received Heat Transfer 282 | 18 129 135 Siege Activations . | . . . Robots Corrupted . | . . . Combat Hostiles . | . . . Parts Fried . | . . . Impact Corruptions . | . . . Robots Melted . | . . . Combat Hostiles . | . . . Parts Melted . | . . . Heat Transferred 272 | . 111 161 Parts Sabotaged . | . . . Parts Stolen . | . . . Parts Stripped . | . . . Power Chain Reactions . | . . . Alert | -11 -10 -9 ------- Run | Yrd Mat Mat Peak Influence 432 | 20 266 432 Initial 13 | . 13 . Average 93 | 1 94 119 Maximum Alert Level 2 | . 1 2 Low Security (%) 82 | 100 86 72 Level 1 16 | . 13 24 Level 2 . | . . 2 Level 3 . | . . . Level 4 . | . . . Level 5 . | . . . High Security . | . . . Max Security . | . . . Squads Dispatched 5 | . 2 3 Investigation 1 | . 1 . Extermination . | . . . Reinforcement 4 | . 1 3 Assault . | . . . Garrison . | . . . Intercept . | . . . Searches Triggered . | . . . Construction Impeded 1 | . . 1 Haulers Reinforced . | . . . Active Scanning Responses . | . . . Cargo Convoy Interrupts . | . . . Stealth | -11 -10 -9 --------- Run | Yrd Mat Mat Distress Signals 1 | . 1 . Communications Jammed . | . . . Distress Signals . | . . . Times Spotted 31 | 1 12 18 Peak Tracking Total 7 | 1 3 7 Tactical Retreats . | . . . Traps | -11 -10 -9 ------- Run | Yrd Mat Mat Traps Triggered . | . . . Indirectly . | . . . Trap Hack Attempts . | . . . Triggered . | . . . Disarmed . | . . . Reprogrammed . | . . . Reused . | . . . Traps Extracted . | . . . Installed . | . . . Triggered . | . . . Machines | -11 -10 -9 ---------- Run | Yrd Mat Mat Machines Disabled 13 | . 3 10 Max in Single Turn 2 | . 2 2 Machines Repaired . | . . . Machines Dismantled 1 | . . 1 Machines Sabotaged . | . . . Overloaded Fab Kills . | . . . Hacking | -11 -10 -9 --------- Run | Yrd Mat Mat Machines Accessed 9 | . 6 3 Terminals 7 | . 5 2 Fabricators . | . . . Repair Stations . | . . . Recycling Units 2 | . 1 1 Scanalyzers . | . . . Garrison Access . | . . . Total Hacks 17 | . 14 3 Successful 11 | . 10 1 Failed 6 | . 4 2 Catastrophic 1 | . . 1 Database Lockouts . | . . . Manual . | . . . Terminals 13 | . 11 2 Fabricators . | . . . Repair Stations . | . . . Recycling Units 4 | . 3 1 Scanalyzers . | . . . Garrison Access . | . . . Terminal Hacks 10 | . 9 1 Record 4 | . 4 . Alert Level 1 | . 1 . Unreport Threat 1 | . 1 . Locate Traps 1 | . 1 . Dispatch Records 1 | . 1 . Maintenance Status 1 | . . 1 Transport Status 1 | . 1 . Fabricator Hacks . | . . . Repair Station Hacks . | . . . Recycling Unit Hacks 1 | . 1 . Recycle Component 1 | . 1 . Scanalyzer . | . . . Garrison Access Hacks . | . . . Unauthorized Hacks . | . . . Terminals . | . . . Fabricators . | . . . Repair Stations . | . . . Recycling Units . | . . . Scanalyzers . | . . . Garrison Access . | . . . Data Cores Recovered . | . . . Used . | . . . Hacking Detections 4 | . 3 1 Full Trace Events 1 | . 1 . Feedback Events . | . . . Feedback Blocked . | . . . Robot Schematics Acquired . | . . . Robots Built . | . . . Authchips . | . . . Time . | . . . Total Robot Build Rating . | . . . Part Schematics Acquired . | . . . Parts Built . | . . . Authchips . | . . . Time . | . . . Total Part Build Rating . | . . . Parts Repaired . | . . . Time . | . . . Parts Recycled 1 | . 1 . Recycled Matter . | . . . Retrieved Matter . | . . . Retrieved Components . | . . . Parts Scanalyzed . | . . . Part Schematics Acquired . | . . . Parts Damaged . | . . . Bothacking | -11 -10 -9 ------------ Run | Yrd Mat Mat Used RIF Installer . | . . . Robots Hacked . | . . . Non-combat . | . . . Combat . | . . . Robot Hacks Applied . | . . . Relay Couplers Released . | . . . Fabnet Peak Effective % . | . . . Robots Rewired . | . . . Allies Hacked . | . . . Hacks Repelled . | . . . Allies | -11 -10 -9 -------- Run | Yrd Mat Mat Total Allies . | . . . Largest Group . | . . . Highest-Rated Group . | . . . Highest-Rated Ally . | . . . Total Orders . | . . . Ally Attacks . | . . . Total Damage . | . . . Kills . | . . . Allies Corrupted . | . . . Allies Melted . | . . . Intel | -11 -10 -9 ------- Run | Yrd Mat Mat Robot Analysis Total . | . . . Derelict Logs Recovered . | . . . Drone Launches . | . . . Drone Recoveries . | . . . Exploration | -11 -10 -9 ------------- Run | Yrd Mat Mat Turns Passed 1660 | 198 814 648 Spaces Moved 1427 | 191 763 473 Core 95 | 67 7 21 Treads . | . . . Legs 699 | . 247 452 Wheels 633 | 124 509 . Hover . | . . . Flight . | . . . Fastest Speed 50 | 50 80 100 Average Speed 98 | 69 93 119 Slowest Speed 150 | 80 150 150 Overloaded Moves . | . . . Propulsion Burnouts . | . . . Robots Hopped . | . . . Cave-ins Triggered 1 | . . 1 Exploration Rate (%) 37 | 8 68 35 Regions Visited 2 Branch Regions . Pre-discovered Areas . | . . . Known Exits Taken . | . . . Unknown Exits Taken 2 | 1 1 . Scrap Searched . | . . . Spaces Dug . | . . . Terrain Destroyed 270 | . 109 161 Melee . | . . . Projectile . | . . . AOE 270 | . 109 161 Terrain Rammed . | . . . Walls Destroyed . | . . . Machines Disabled . | . . . Actions | -11 -10 -9 --------- Run | Yrd Mat Mat Total 1606 | 249 833 524 Wait 39 | 39 . . Move 1425 | 190 762 473 Hop . | . . . Pick Up 38 | 9 19 10 Fast Attach . | . . . Attach 29 | 5 12 12 Detach 5 | . 4 1 Swap 9 | 2 3 4 Drop 17 | . 13 4 Fire 40 | 3 20 17 Melee . | . . . Ram 1 | 1 . . Kick . | . . . Crush . | . . . Escape Stasis . | . . . Rewire . | . . . Trap . | . . . Miscellaneous 3 | . . 3 Route ------- -11/Scrapyard -10/Materials (discovered 4 exits: *Mat x3 / [*Min]) -9/Materials (discovered 1 exit: [*Min]) History --------- Turn | Location | Event 2 | -11/Scrapyard | Met Revision 17 177 | -11/Scrapyard | Discovered new exit (range 8) 199 | -11/Scrapyard | Entered Materials 315 | -10/Materials | Build established: Mutant 482 | -10/Materials | Discovered new exit (range 7) 592 | -10/Materials | Discovered new exit (range 15) 800 | -10/Materials | Discovered new exit (range 8) 828 | -10/Materials | Discovered new exit (range 3) 1013 | -10/Materials | Entered another Materials area 1013 | -9/Materials | Evolved 2 slots: Power x1, Utility x1 1175 | -9/Materials | Crushed by falling debris 1206 | -9/Materials | Lost 3 parts (1p2u) 1506 | -9/Materials | Core integrity fell below 50% 1576 | -9/Materials | Discovered new exit (range 12) 1638 | -9/Materials | Core integrity fell below 20% 1661 | -9/Materials | Destroyed by G-34 Mercenary with Small Laser Last Messages --------------- Imp. Aluminum Leg destroyed. Destroyed Imp. Aluminum Leg. Terminal disabled. R-06 Scavenger collects Flight Unit. S-10 Pest destroyed. R-06 Scavenger collects Lgt. Ion Engine. Autogun destroyed. R-06 Scavenger collects Flight Unit. S-10 Pest destroyed. Matter Pump disabled. S-10 Pest destroyed. K-01 Serf collects debris. Acquired 5 matter. Acquired 11 matter. K-01 Serf collects debris. The unstable cave ceiling collapses. Acquired Lgt. Ion Engine. K-01 Serf collects debris. K-01 Serf destroyed. [Achievement: First Step to Greatness] Map ----- +----------------------------------------------------+ | ?????????????????????????????????????????????????? | | ?????????????????????????????????????????????????? | | ?????????????????????????????????????????????????? | | ?????????????????????????????????????????????????? | | ?????????????????????????????????????????????????? | | ?????????????????????????????????????????????????? | | ?????????????????????????????????????????????????? | | ?????????????????????????????????????????????????? | | ?????????????????????????????????????????????????? | | ?????????????????????????????????????????????????? | | ????????????????????????????? ???????????????????? | | ???????????????? ???????????? ????????????????? | | ???????????????? ??????##### #???????????????? | | ????????????#####+#???## #???????????????? | | ?????????? ??? % #???????????????? | | ?????????? ??? g +???????????????? | | ????????? """ g #???????????????? | | ?????????? """"" #???????????????? | | ?????????? """" *k #???????????????? | | ?????????? """"" ]][ #???????????????? | | ????????? """ ]![ ##### ?????????? | | ????????? [![ %=]![ ?????????? | | ???????? [! T????????? | | ???????? ??!! [ = ??????????? | | ???????????##??#?### % #?????????????????? | | ?????????????????# %= @ #?????????????????? | | ?????????????????## % " #?? ??????????????? | | ?????????????#?##?## = T "" #?????????????????? | | ????????""? ???????# " """ #?????????????????? | | ??????????? ????#?## #?????????????????? | | ????????"?????#????# #?? ??????????????? | | ?????????? ??#???# ###+#?? ??????????????? | | ?????????"? ??????## #? ??????????????????? | | ??????? ???? ??#??# #? ??????????????????? | | ??????????###???#?# k +?????????????????????? | | ????????? ?######## a #?????????????????????? | | ?????????? # # ###### ? ??????????????????? | | ??????"????# # w #??????? ??????????????????? | | ?????????? # # ######?????????????????????? | | ??????"????#!!! + + ? ?#????????????????? | | ???? !!! # ########???????????????????? | | ??????######!!! # #########?????????????????? | | ??????##########+## ## ##????????????????? | | ???? ??????????????? | | #????######### < ??????????????? | | ???#???# # ??????????????? | | ???????## # #+### # ###???????????????? | | ??#????# ## "!"!" #?????????????????? | | ??????## # ##??"!"!""#?????????????????? | | ?#????# ########???????????????????? | +----------------------------------------------------+ Best States ------------- Heat Dissipation 28 Energy Generation 10 Energy Capacity 250 Matter Stores 300 Matter Capacity 500 Sight Range 16 Robot Scan Range 14 Terrain Scan Range 14 Terrain Scan Density 85 Evasion (%) 55 Targeting Accuracy 5 Item Schematics ----------------- None Robot Schematics ------------------ None Fabricated ------------ Nothing Alien Tech Used ----------------- None Achievements -------------- Crack Shot Everything Is Under Control First Step to Greatness Let's See Who's Tougher One Hack Too Far Remodeling Storm Trooper Uninvited Guest Unlikely Earthworm Challenges ------------ None Game ------ Seed RemoteMetafieldBox Manual? 0 Play Time 00:44:10 Cumulative 0.7 hours Start 2024.03.31 @ 20:30:33 End 2024.03.31 @ 22:28:28 Sessions 1 Manual Loads 0 Difficulty Rogue Special Mode None Game No. 1 Rogue 1 Adventurer 0 Explorer 0 Win Type - Total 0 Types 0/0/0/0/0/0/0/0/0 Lore% 0 Gallery% 1 Achievement% 3 Wizard Run 0 Options --------- Layout 1 ASCII 0 Keyboard 0 Movement Arrows Keybinds 0 Fullscreen 1 Font 32/SmallcapsGlow Map View 50x35 Zoom Use 0% Tactical HUD 0 Map Filters NONE Filters NONE Steam 0 RUN: e3ffb027-a6ec-4dd9-8dcf-79b81cf03c86